Cogmind - Beta 11.1 @@@ ROGUE MODE // 2022.05.12 @ 20:14:51 Player: Olga Result: Self-destructed Performance ------------- Evolutions (1) 500 Regions Visited (4) 800 Robots Destroyed (0) 0 Value Destroyed (0) 0 Prototype IDs (1) 20 Alien Tech Used (0) 0 Bonus (200) 200 TOTAL SCORE: 1520 Bonus ------- Pacifist 200 Cogmind --------- Core Integrity 364/400 Matter 274/300 Energy 98/100 System Corruption 0% Temperature Cool (4) Movement Flying (37) Location -9/Mines Parts ------- > --- POWER (1) -------- (None) > --- PROPULSION (2) --- Flight Unit Improved Flight Unit > --- UTILITY (4) ------ (None) > --- WEAPON (2) ------- (None) > --- INVENTORY (5) ---- (None) Peak State ------------ > --- POWER ------------ (None) > --- PROPULSION ------- Flight Unit Improved Flight Unit > --- UTILITY ---------- (None) > --- WEAPON ----------- (None) > --- INVENTORY -------- (None) [Rating: 4] Favorites ----------- Power None Propulsion Improved Flight Unit Flight Unit Improved Flight Unit Utility None Weapon None Build | -11 -10 -10 -9 -9 ------- Run | Scr Mat Min Mat Min Slots Evolved 2 | . . . 2 . Power . | . . . . . Propulsion . | . . . . . Utility 2 | . . . 2 . Weapon . | . . . . . Parts Attached 3 | . . . 2 1 Power . | . . . . . Engine . | . . . . . Core . | . . . . . Reactor . | . . . . . Propulsion 3 | . . . 2 1 Treads . | . . . . . Leg . | . . . . . Wheel . | . . . . . Hover . | . . . . . Flight 3 | . . . 2 1 Utility . | . . . . . Device . | . . . . . Storage . | . . . . . Processor . | . . . . . Hackware . | . . . . . Protection . | . . . . . Artifact . | . . . . . Weapon . | . . . . . Energy Gun . | . . . . . Energy Cannon . | . . . . . Ballistic Gun . | . . . . . Ballistic Cannon . | . . . . . Launcher . | . . . . . Special Weapon . | . . . . . Impact Weapon . | . . . . . Slashing Weapon . | . . . . . Piercing Weapon . | . . . . . Special Melee Weapon . | . . . . . Unidentified Prototypes 1 | . . . 1 . Parts Lost 1 | . . . . 1 Power . | . . . . . Propulsion 1 | . . . . 1 Utility . | . . . . . Weapon . | . . . . . Highest Loss Streak 1 | . . . . 1 To Critical Strikes . | . . . . . Average Slot Usage (%) 7 | . . . 15 22 Flight 7 | . . . 15 22 Naked Turns 139 | . 51 75 13 . Heaviest Build . | . . . . . Greatest Support 9 | 3 3 3 9 9 Greatest Overweight (x) . | . . . . . Average Overweight (x) . | . . . . . Largest Inventory Capacity 5 | 5 5 5 5 5 Average Capacity 5 | 5 5 5 5 5 Most Carried 4 | 4 . . 1 1 Average Carried . | 2 . . . . Final Capacity 5 | 5 5 5 5 5 Final Carried 1 | . . . 1 . Class Distribution -------------------- 100% | Mutant Dominant Class ---------------- Mutant | -10/Materials Mutant | -10/Mines Mutant | -9/Materials Mutant | -9/Mines Resources | -11 -10 -10 -9 -9 ----------- Run | Scr Mat Min Mat Min Matter Collected 192 | 192 . . . . Remotely . | . . . . . Salvage Created . | . . . . . Parts . | . . . . . Haulers Intercepted . | . . . . . Recyclers Shooed . | . . . . . Parts Field Recycled . | . . . . . Retrieved Matter . | . . . . . Parts Self-Destructed . | . . . . . Prevented . | . . . . . Kills | -11 -10 -10 -9 -9 ------- Run | Scr Mat Min Mat Min Combat Hostiles Destroyed . | . . . . . Classes Destroyed . | . . . . . Best Kill Streak . | . . . . . Combat Bots Only . | . . . . . Max Kills in Single Turn . | . . . . . Gunslinging . | . . . . . Exploded . | . . . . . Melee . | . . . . . Uniques/NPCs Destroyed . | . . . . . Combat | -11 -10 -10 -9 -9 -------- Run | Scr Mat Min Mat Min Damage Taken 100 | . . 19 9 72 Core 55 | . . 19 . 36 Absorbed by Shields . | . . . . . Core Remaining (%) 96 | 100 . 92 . . Volleys Fired . | . . . . . Largest . | . . . . . Hottest . | . . . . . Shots Fired . | . . . . . Gun . | . . . . . Cannon . | . . . . . Launcher . | . . . . . Special . | . . . . . Kinetic . | . . . . . Thermal . | . . . . . Explosive . | . . . . . Electromagnetic . | . . . . . Robot Hit Streak . | . . . . . Robot Miss Streak . | . . . . . Penetration Max . | . . . . . Secondary Targets . | . . . . . Shots Hit Robots . | . . . . . Core Hits . | . . . . . Critical Kills . | . . . . . Critical Parts Destroyed . | . . . . . Critical Strikes . | . . . . . Melee Attacks . | . . . . . Impact . | . . . . . Slashing . | . . . . . Piercing . | . . . . . Sneak Attacks . | . . . . . Combat Hostiles . | . . . . . Follow-up Attacks . | . . . . . Damage Inflicted 10 | . . 10 . . Guns . | . . . . . Cannons . | . . . . . Explosions . | . . . . . Melee . | . . . . . Ramming 10 | . . 10 . . Kinetic . | . . . . . Thermal . | . . . . . Explosive . | . . . . . Electromagnetic . | . . . . . Impact . | . . . . . Slashing . | . . . . . Piercing . | . . . . . Highest Corruption . | . . . . . Average Corruption . | . . . . . Corruption Purged . | . . . . . Corruption Blocked . | . . . . . Overload Shots . | . . . . . Overflow Damage . | . . . . . Projectiles . | . . . . . Explosions . | . . . . . Melee . | . . . . . Knockbacks . | . . . . . Impact . | . . . . . Kinetic . | . . . . . Secondary . | . . . . . Self-Inflicted Damage 4 | . . 4 . . Shots . | . . . . . Rammed 3 | . . 3 . . Targets Rammed 3 | . . 3 . . Kicked . | . . . . . Crushed . | . . . . . Highest Temperature . | . . . . . Average Temperature . | . . . . . Received Heat Transfer 27 | . . 9 . 18 Siege Activations . | . . . . . Robots Corrupted . | . . . . . Combat Hostiles . | . . . . . Parts Fried . | . . . . . Impact Corruptions . | . . . . . Robots Melted . | . . . . . Combat Hostiles . | . . . . . Parts Melted . | . . . . . Heat Transferred . | . . . . . Parts Sabotaged . | . . . . . Parts Stolen . | . . . . . Parts Stripped . | . . . . . Power Chain Reactions . | . . . . . Missiles Intercepted . | . . . . . Alert | -11 -10 -10 -9 -9 ------- Run | Scr Mat Min Mat Min Peak Influence 76 | . 15 5 76 34 Initial 29 | . . 5 1 29 Average 11 | . 5 5 16 22 Maximum Alert Level . | . . . . . Low Security (%) 100 | 100 100 100 100 100 Level 1 . | . . . . . Level 2 . | . . . . . Level 3 . | . . . . . Level 4 . | . . . . . Level 5 . | . . . . . High Security . | . . . . . Max Security . | . . . . . Squads Dispatched . | . . . . . Investigation . | . . . . . Extermination . | . . . . . Reinforcement . | . . . . . Assault . | . . . . . Garrison . | . . . . . Intercept . | . . . . . Searches Triggered . | . . . . . Construction Impeded . | . . . . . Haulers Reinforced . | . . . . . Active Scanning Responses . | . . . . . Cargo Convoy Interrupts . | . . . . . Stealth | -11 -10 -10 -9 -9 --------- Run | Scr Mat Min Mat Min Distress Signals . | . . . . . Communications Jammed . | . . . . . Distress Signals . | . . . . . Times Spotted 11 | . 2 2 5 2 Peak Tracking Total 5 | . 2 2 5 2 Tactical Retreats 2 | . . . 1 1 Traps | -11 -10 -10 -9 -9 ------- Run | Scr Mat Min Mat Min Traps Triggered . | . . . . . Indirectly . | . . . . . Trap Hack Attempts . | . . . . . Triggered . | . . . . . Disarmed . | . . . . . Reprogrammed . | . . . . . Reused . | . . . . . Traps Extracted . | . . . . . Installed . | . . . . . Triggered . | . . . . . Machines | -11 -10 -10 -9 -9 ---------- Run | Scr Mat Min Mat Min Machines Disabled . | . . . . . Max in Single Turn . | . . . . . Machines Sabotaged . | . . . . . Garrisons Compromised . | . . . . . Overloaded Fab Kills . | . . . . . Hacking | -11 -10 -10 -9 -9 --------- Run | Scr Mat Min Mat Min Machines Accessed . | . . . . . Terminals . | . . . . . Fabricators . | . . . . . Repair Stations . | . . . . . Recycling Units . | . . . . . Scanalyzers . | . . . . . Garrison Access . | . . . . . Total Hacks . | . . . . . Successful . | . . . . . Failed . | . . . . . Catastrophic . | . . . . . Database Lockouts . | . . . . . Manual . | . . . . . Terminals . | . . . . . Fabricators . | . . . . . Repair Stations . | . . . . . Recycling Units . | . . . . . Scanalyzers . | . . . . . Garrison Access . | . . . . . Terminal Hacks . | . . . . . Fabricator Hacks . | . . . . . Repair Station Hacks . | . . . . . Recycling Unit Hacks . | . . . . . Scanalyzer . | . . . . . Garrison Access Hacks . | . . . . . Unauthorized Hacks . | . . . . . Terminals . | . . . . . Fabricators . | . . . . . Repair Stations . | . . . . . Recycling Units . | . . . . . Scanalyzers . | . . . . . Garrison Access . | . . . . . Data Cores Recovered . | . . . . . Used . | . . . . . Hacking Detections . | . . . . . Full Trace Events . | . . . . . Feedback Events . | . . . . . Feedback Blocked . | . . . . . Robot Schematics Acquired . | . . . . . Robots Built . | . . . . . Authchips . | . . . . . Time . | . . . . . Total Robot Build Rating . | . . . . . Part Schematics Acquired . | . . . . . Parts Built . | . . . . . Authchips . | . . . . . Time . | . . . . . Total Part Build Rating . | . . . . . Parts Repaired . | . . . . . Time . | . . . . . Parts Recycled . | . . . . . Recycled Matter . | . . . . . Retrieved Matter . | . . . . . Retrieved Components . | . . . . . Parts Scanalyzed . | . . . . . Part Schematics Acquired . | . . . . . Parts Damaged . | . . . . . Bothacking | -11 -10 -10 -9 -9 ------------ Run | Scr Mat Min Mat Min Used RIF Installer . | . . . . . Robots Hacked . | . . . . . Non-combat . | . . . . . Combat . | . . . . . Robot Hacks Applied . | . . . . . Relay Couplers Released . | . . . . . Fabnet Peak Effective % . | . . . . . Robots Rewired . | . . . . . Allies Hacked . | . . . . . Hacks Repelled . | . . . . . Allies | -11 -10 -10 -9 -9 -------- Run | Scr Mat Min Mat Min Total Allies 1 | . . . . 1 Largest Group . | . . . . . Highest-Rated Group . | . . . . . Highest-Rated Ally . | . . . . . Total Orders . | . . . . . Ally Attacks . | . . . . . Total Damage . | . . . . . Kills . | . . . . . Allies Corrupted . | . . . . . Allies Melted . | . . . . . Intel | -11 -10 -10 -9 -9 ------- Run | Scr Mat Min Mat Min Robot Analysis Total . | . . . . . Derelict Logs Recovered 1 | . . 1 . . Drone Launches . | . . . . . Drone Recoveries . | . . . . . Exploration | -11 -10 -10 -9 -9 ------------- Run | Scr Mat Min Mat Min Turns Passed 228 | 3 51 75 54 45 Spaces Moved 474 | 1 102 144 117 110 Core 271 | 1 102 144 24 . Treads . | . . . . . Legs . | . . . . . Wheels . | . . . . . Hover . | . . . . . Flight 203 | . . . 93 110 Fastest Speed 37 | 50 50 50 37 37 Average Speed 44 | 50 50 50 40 37 Slowest Speed 50 | 50 50 50 50 40 Overloaded Moves . | . . . . . Propulsion Burnouts . | . . . . . Robots Hopped 6 | . . . 2 4 Cave-ins Triggered . | . . . . . Exploration Rate (%) 22 | 2 34 37 17 22 Regions Visited 4 Branch Regions 2 Pre-discovered Areas 1 | . . 1 . . Known Exits Taken . | . . . . . Unknown Exits Taken 4 | 1 1 1 1 . Scrap Searched . | . . . . . Spaces Dug . | . . . . . Terrain Destroyed . | . . . . . Melee . | . . . . . Projectile . | . . . . . AOE . | . . . . . Terrain Rammed . | . . . . . Walls Destroyed . | . . . . . Machines Disabled . | . . . . . Actions | -11 -10 -10 -9 -9 --------- Run | Scr Mat Min Mat Min Total 482 | 5 101 146 120 110 Wait 6 | . . . 3 3 Move 459 | . 101 143 112 103 Hop 5 | . . . 2 3 Pick Up 1 | . . . 1 . Fast Attach 2 | . . . 2 . Attach 1 | . . . . 1 Detach . | . . . . . Swap . | . . . . . Drop 5 | 5 . . . . Fire . | . . . . . Melee . | . . . . . Ram 3 | . . 3 . . Kick . | . . . . . Crush . | . . . . . Escape Stasis . | . . . . . Rewire . | . . . . . Trap . | . . . . . Miscellaneous . | . . . . . Route ------- -11/Scrapyard -10/Materials -10/Mines -9/Materials -9/Mines History --------- Turn | Location | Event 1 | -11/Scrapyard | Released all parts (6) 4 | -11/Scrapyard | Discovered new exit (range 0) 4 | -11/Scrapyard | Entered Materials 48 | -10/Materials | Discovered new exit (range 15) 55 | -10/Materials | Entered Mines 84 | -10/Mines | Learned location of Storage (-8) 124 | -10/Mines | Discovered new exit (range 13) 130 | -10/Mines | Entered Materials 130 | -9/Materials | Evolved 2 slots: Utility x2 180 | -9/Materials | Discovered new exit (range 10) 184 | -9/Materials | Entered Mines 216 | -9/Mines | Assembled infested the area 225 | -9/Mines | Received a Mining Laser from a helpful Derelict 229 | -9/Mines | Self-destructed Last Messages --------------- 00153_ Acquired Flight Unit. 00154_ Atomic Centrifuge disabled. 00155_ Acquired Flight Unit. 00162_ K-01 Serf collects debris. 00180_ EXIT=FOUND LOCATION=UNKNOWN GOAL=ESCAPE Something is scanning the area. 00188_ K-01 Serf collects debris. 00200_ Flight Unit destroyed. 00201_ K-01 Serf collects debris. 00216_ ALERT: Infestation in the mines, dispatching Demolisher response squad. 00223_ A derelict emerges from the shadows: "What are you doing alone down here?" 00225_ PB-ONT(g): "And why aren't you carrying a mining laser?! Certainly you don't want THEM to uncover you when the ceiling comes crashing down? Here, take my spare." 00228_ PB-ONT(g): "You're apparently new around these parts, I'll cover you." Map ----- +----------------------------------------------------+ | ?????????????????????????????? | | ?????????????????????????????? | | ?????????????????????????????? | | ?????????????????????????????? | | ?????????????????????????????? | | ?????????????????????????????? | | ?????????????????????????????? | | ?????????????????????????????? | | ?????????????????????????????? | | ?????????????????????????????? | | ?????????????????????????????? | | ?????????????????????????????? | | ?????????????????????????????? | | ?????????????????????????????? | | ?????????????????????????????? | | ??????#####??????????????????? | | ?????## ##?????????????????? | | ?????# #?????????????????? | | ?????# #?????????????????? | | ?????# #??????????????????? | | ????## #??????????????????? | | ???## ##??????????????????? | | ??## ##???????????????????? | | ??# g ##????????????????????? | | ??# ##????????????????????? | | ??## @ ##??################## | | ???# #### | | ??# | ############### | | ??# #?????????????# | | ??## ### ##?????????????# | | ???####?#######??????????????# | | ?????????????????????????????# | | ?????????????????????????????# | | ?????????????????????????????# | | ????????????????????????###### | | ????????????????????????# | | ????????????????????????# #### | | ????????????????????????# #??# | | ????????????????????????# #??# | | ????????????????????????# #??# | | ????????????????????????# #??# | | ????????????????????????# #??# | | ????????????????????????# #??# | | ????????????????????????# #??? | | ?????????? ##### #??? | | ??????????# #??? | | ??????????????" """ ##### #??? | | ????????????????????????# #??? | | ??????????????????????### #??? | | ?????????????????????## ##?? | +----------------------------------------------------+ Best States ------------- Heat Dissipation 28 Energy Generation 5 Energy Capacity 100 Matter Stores 299 Matter Capacity 300 Sight Range 16 Terrain Scan Density 10 Evasion (%) 62 Item Schematics ----------------- None Robot Schematics ------------------ None Fabricated ------------ Nothing Alien Tech Used ----------------- None Achievements -------------- None Challenges ------------ None Game ------ Seed NetworkIntegratedShredder Manual? 0 Play Time 00:02:54 Cumulative 249.6 hours Start 2022.05.12 @ 20:12:28 End 2022.05.12 @ 20:14:51 Sessions 1 Manual Loads 0 Difficulty Rogue Special Mode None Game No. 351 Rogue 348 Adventurer 0 Explorer 3 Win Type - Total 8 Types 8/0/0/0/0/0/0/0/0 Lore% 71 Gallery% 75 Achievement% 62 Wizard Run 0 Options --------- ASCII 1 Keyboard 1 Movement Vi Keybinds 0 Fullscreen 1 Font 18/SmallcapsGlow Map View 76x50 Tactical HUD 1 Map Filters NONE Filters NONE Steam 1 RUN: fe3942bd-ab7e-4965-ae98-d99521d53db1